Cogmind - Beta 13 X1 @@@ ROGUE MODE // 2023.06.22 @ 18:40:21 Player: LU-1G1 Result: Destroyed by PS-FHB(R) with Subdweller Laser Performance ------------- Evolutions (0) 0 Regions Visited (2) 400 Robots Destroyed (16) 80 Value Destroyed (413) 413 Prototype IDs (0) 0 Alien Tech Used (0) 0 Bonus (0) 0 TOTAL SCORE: 893 Bonus ------- None Cogmind --------- Core Integrity 0/250 Matter 230/300 Energy 246/250 System Corruption 0% Temperature Cool (6) Movement Treading (160) Location -10/Subcaves Parts ------- > --- POWER (1) -------- Ion Engine > --- PROPULSION (2) --- Light Treads Spiked Treads > --- UTILITY (2) ------ Small Storage Unit Seismic Detector > --- WEAPON (2) ------- Particle Gun Battle Cannon > --- INVENTORY (8) ---- Light Ion Engine Improved Terrain Scanner Makeshift System Shield Small Laser Makeshift Hammer Piercing Trap Peak State ------------ > --- POWER ------------ Ion Engine > --- PROPULSION ------- Light Treads Spiked Treads > --- UTILITY ---------- Small Storage Unit Seismic Detector > --- WEAPON ----------- Subdweller Machine Gun Battle Cannon > --- INVENTORY -------- Light Ion Engine Improved Terrain Scanner Makeshift System Shield Small Laser Particle Gun Makeshift Hammer Piercing Trap [Rating: 11] Favorites ----------- Power Light Ion Engine Engine Light Ion Engine Propulsion Light Treads Treads Light Treads Utility Small Storage Unit Device Seismic Detector Storage Small Storage Unit Weapon Light Assault Rifle Energy Gun Small Laser Ballistic Gun Light Assault Rifle Ballistic Cannon Battle Cannon Build | -11 -10 -10 ------- Run | Jun Mat Sub Slots Evolved . | . . . Power . | . . . Propulsion . | . . . Utility . | . . . Weapon . | . . . Parts Attached 18 | 8 1 9 Power 3 | 1 . 2 Engine 3 | 1 . 2 Core . | . . . Reactor . | . . . Propulsion 3 | 2 . 1 Treads 3 | 2 . 1 Leg . | . . . Wheel . | . . . Hover . | . . . Flight . | . . . Utility 3 | 3 . . Device 2 | 2 . . Storage 1 | 1 . . Processor . | . . . Hackware . | . . . Protection . | . . . Artifact . | . . . Weapon 9 | 2 1 6 Energy Gun 4 | 1 1 2 Energy Cannon . | . . . Ballistic Gun 4 | 1 . 3 Ballistic Cannon 1 | . . 1 Launcher . | . . . Special Weapon . | . . . Impact Weapon . | . . . Slashing Weapon . | . . . Piercing Weapon . | . . . Special Melee Weapon . | . . . Unidentified Prototypes . | . . . Parts Lost 5 | . 1 4 Power 1 | . . 1 Propulsion 1 | . . 1 Utility . | . . . Weapon 3 | . 1 2 Highest Loss Streak 2 | . 1 2 To Critical Strikes . | . . . Average Slot Usage (%) 99 | . 99 99 Engine 13 | . 14 13 Treads 28 | . 28 28 Device 14 | . 14 14 Storage 14 | . 14 14 Energy Gun 7 | . 13 6 Ballistic Gun 13 | . 14 13 Ballistic Cannon 6 | . . 7 Naked Turns . | . . . Heaviest Build 18 | 12 12 18 Greatest Support 40 | 40 40 40 Greatest Overweight (x) 1 | 1 . . Average Overweight (x) . | . . . Largest Inventory Capacity 8 | 8 8 8 Average Capacity 7 | 7 8 8 Most Carried 8 | 7 7 8 Average Carried 6 | 4 6 6 Final Capacity 8 | 8 8 8 Final Carried 7 | 7 7 6 Class Distribution -------------------- 100% | Mutant Dominant Class ---------------- Mutant | -10/Materials Mutant | -10/Subcaves Resources | -11 -10 -10 ----------- Run | Jun Mat Sub Matter Collected 565 | 286 16 263 Remotely . | . . . Salvage Created 523 | 149 138 236 Parts 41 | 14 8 19 Haulers Intercepted . | . . . Recyclers Shooed . | . . . Parts Field Recycled . | . . . Retrieved Matter . | . . . Parts Self-Destructed 11 | . . 11 Prevented . | . . . Kills | -11 -10 -10 ------- Run | Jun Mat Sub Combat Hostiles Destroyed 12 | . 3 9 Guns 6 | . 3 3 Cannons 6 | . . 6 Classes Destroyed 6 | 2 1 3 Tunneler 3 | 3 . . Recycler 1 | 1 . . Swarmer 3 | . . 3 Grunt 5 | . 3 2 Artisan 1 | . . 1 Subdweller 4 | . . 4 Best Kill Streak 3 | 1 3 3 Combat Bots Only 3 | . 3 3 Max Kills in Single Turn 2 | 1 2 1 Gunslinging . | . . . Exploded . | . . . Melee . | . . . Uniques/NPCs Destroyed . | . . . Combat | -11 -10 -10 -------- Run | Jun Mat Sub Damage Taken 1038 | 23 233 782 Core 266 | 23 49 194 Absorbed by Shields . | . . . Core Remaining (%) 90 | 90 . . Volleys Fired 63 | 8 11 44 Largest 2 | 2 2 2 Hottest 104 | 60 60 104 Shots Fired 124 | 16 21 87 Gun 83 | 16 21 46 Cannon 41 | . . 41 Launcher . | . . . Special . | . . . Kinetic 90 | 8 11 71 Thermal 18 | . 2 16 Explosive . | . . . Electromagnetic 16 | 8 8 . Robot Hit Streak 7 | 5 7 7 Robot Miss Streak 6 | 3 3 6 Penetration Max . | . . . Secondary Targets . | . . . Shots Hit Robots 58 | 10 13 35 Core Hits 27 | 6 7 14 Critical Kills . | . . . Critical Parts Destroyed . | . . . Critical Strikes 3 | 1 . 2 Blast 2 | . . 2 Corrupt 1 | 1 . . Melee Attacks . | . . . Impact . | . . . Slashing . | . . . Piercing . | . . . Sneak Attacks . | . . . Combat Hostiles . | . . . Follow-up Attacks . | . . . Damage Inflicted 1040 | 141 166 733 Guns 612 | 106 163 343 Cannons 390 | . . 390 Explosions 31 | 31 . . Melee . | . . . Ramming 7 | 4 3 . Kinetic 635 | 36 61 538 Thermal 250 | 31 24 195 Explosive . | . . . Electromagnetic 148 | 70 78 . Impact . | . . . Slashing . | . . . Piercing . | . . . Highest Corruption . | . . . Average Corruption . | . . . Corruption Purged . | . . . Corruption Blocked . | . . . Overload Shots . | . . . Overflow Damage 5 | . . 5 Projectiles 5 | . . 5 Explosions . | . . . Melee . | . . . Knockbacks 3 | . . 3 Impact . | . . . Kinetic 3 | . . 3 Secondary . | . . . Self-Inflicted Damage 23 | 23 . . Shots 1 | 1 . . Rammed 2 | 1 1 . Targets Rammed 2 | 1 1 . Kicked . | . . . Crushed . | . . . Highest Temperature 151 | 32 151 21 Average Temperature 53 | 14 79 9 Received Heat Transfer 372 | . 132 240 Siege Activations . | . . . Robots Corrupted . | . . . Combat Hostiles . | . . . Parts Fried . | . . . Impact Corruptions . | . . . Robots Melted . | . . . Combat Hostiles . | . . . Parts Melted . | . . . Heat Transferred 569 | 50 50 469 Parts Sabotaged . | . . . Parts Stolen . | . . . Parts Stripped . | . . . Power Chain Reactions 1 | 1 . . Missiles Intercepted . | . . . Alert | -11 -10 -10 ------- Run | Jun Mat Sub Peak Influence 98 | 20 98 . Initial 13 | . 13 . Average 33 | 8 53 . Maximum Alert Level . | . . . Low Security (%) 100 | 100 100 . Level 1 . | . . . Level 2 . | . . . Level 3 . | . . . Level 4 . | . . . Level 5 . | . . . High Security . | . . . Max Security . | . . . Squads Dispatched 1 | . 1 . Investigation . | . . . Extermination . | . . . Reinforcement 1 | . 1 . Assault . | . . . Garrison . | . . . Intercept . | . . . Searches Triggered . | . . . Construction Impeded . | . . . Haulers Reinforced . | . . . Active Scanning Responses . | . . . Cargo Convoy Interrupts . | . . . Stealth | -11 -10 -10 --------- Run | Jun Mat Sub Distress Signals 2 | . 2 . Communications Jammed . | . . . Distress Signals . | . . . Times Spotted 20 | . 5 15 Peak Tracking Total 6 | . 5 6 Tactical Retreats 3 | . . 3 Traps | -11 -10 -10 ------- Run | Jun Mat Sub Traps Triggered . | . . . Indirectly . | . . . Trap Hack Attempts . | . . . Triggered . | . . . Disarmed . | . . . Reprogrammed . | . . . Reused . | . . . Traps Extracted . | . . . Installed . | . . . Triggered 1 | . . 1 Most Traps Carried 1 | . . 1 Machines | -11 -10 -10 ---------- Run | Jun Mat Sub Machines Disabled . | . . . Max in Single Turn . | . . . Machines Repaired . | . . . Machines Sabotaged . | . . . Overloaded Fab Kills . | . . . Hacking | -11 -10 -10 --------- Run | Jun Mat Sub Machines Accessed . | . . . Terminals . | . . . Fabricators . | . . . Repair Stations . | . . . Recycling Units . | . . . Scanalyzers . | . . . Garrison Access . | . . . Total Hacks . | . . . Successful . | . . . Failed . | . . . Catastrophic . | . . . Database Lockouts . | . . . Manual . | . . . Terminals . | . . . Fabricators . | . . . Repair Stations . | . . . Recycling Units . | . . . Scanalyzers . | . . . Garrison Access . | . . . Terminal Hacks . | . . . Fabricator Hacks . | . . . Repair Station Hacks . | . . . Recycling Unit Hacks . | . . . Scanalyzer . | . . . Garrison Access Hacks . | . . . Unauthorized Hacks . | . . . Terminals . | . . . Fabricators . | . . . Repair Stations . | . . . Recycling Units . | . . . Scanalyzers . | . . . Garrison Access . | . . . Data Cores Recovered . | . . . Used . | . . . Hacking Detections . | . . . Full Trace Events . | . . . Feedback Events . | . . . Feedback Blocked . | . . . Robot Schematics Acquired . | . . . Robots Built . | . . . Authchips . | . . . Time . | . . . Total Robot Build Rating . | . . . Part Schematics Acquired . | . . . Parts Built . | . . . Authchips . | . . . Time . | . . . Total Part Build Rating . | . . . Parts Repaired . | . . . Time . | . . . Parts Recycled . | . . . Recycled Matter . | . . . Retrieved Matter . | . . . Retrieved Components . | . . . Parts Scanalyzed . | . . . Part Schematics Acquired . | . . . Parts Damaged . | . . . Bothacking | -11 -10 -10 ------------ Run | Jun Mat Sub Used RIF Installer . | . . . Robots Hacked . | . . . Non-combat . | . . . Combat . | . . . Robot Hacks Applied . | . . . Relay Couplers Released . | . . . Fabnet Peak Effective % . | . . . Robots Rewired . | . . . Allies Hacked . | . . . Hacks Repelled . | . . . Allies | -11 -10 -10 -------- Run | Jun Mat Sub Total Allies . | . . . Largest Group . | . . . Highest-Rated Group . | . . . Highest-Rated Ally . | . . . Total Orders . | . . . Ally Attacks . | . . . Total Damage . | . . . Kills . | . . . Allies Corrupted . | . . . Allies Melted . | . . . Intel | -11 -10 -10 ------- Run | Jun Mat Sub Robot Analysis Total . | . . . Derelict Logs Recovered . | . . . Drone Launches . | . . . Drone Recoveries . | . . . Exploration | -11 -10 -10 ------------- Run | Jun Mat Sub Turns Passed 1595 | 183 218 1194 Spaces Moved 835 | 91 103 641 Core 6 | 6 . . Treads 829 | 85 103 641 Legs . | . . . Wheels . | . . . Hover . | . . . Flight . | . . . Fastest Speed 50 | 50 160 160 Average Speed 159 | 155 160 160 Slowest Speed 160 | 160 160 160 Overloaded Moves . | . . . Propulsion Burnouts . | . . . Robots Hopped . | . . . Cave-ins Triggered . | . . . Exploration Rate (%) 21 | 7 19 39 Regions Visited 2 Branch Regions 1 Pre-discovered Areas . | . . . Known Exits Taken . | . . . Unknown Exits Taken 2 | 1 1 . Scrap Searched 4 | . . 4 Spaces Dug . | . . . Terrain Destroyed 7 | 6 . 1 Melee . | . . . Projectile 1 | . . 1 AOE 6 | 6 . . Terrain Rammed . | . . . Walls Destroyed . | . . . Machines Disabled . | . . . Actions | -11 -10 -10 --------- Run | Jun Mat Sub Total 978 | 114 137 727 Wait 41 | . 21 20 Move 833 | 90 102 641 Hop . | . . . Pick Up 12 | 6 1 5 Fast Attach 10 | 8 . 2 Attach 5 | . 1 4 Detach 3 | 1 . 2 Swap 3 | . . 3 Drop 6 | . . 6 Fire 63 | 8 11 44 Melee . | . . . Ram . | . . . Kick . | . . . Crush 2 | 1 1 . Escape Stasis . | . . . Rewire . | . . . Trap . | . . . Miscellaneous . | . . . Route ------- -11/Junkyard -10/Materials -10/Subcaves (discovered 2 exits: [*Mat] / [*Rec]) History --------- Turn | Location | Event 10 | -11/Junkyard | Discovered new exit (range 14) 184 | -11/Junkyard | Entered Materials 331 | -10/Materials | Build established: Mutant 391 | -10/Materials | Discovered new exit (range 8) 402 | -10/Materials | Entered Subcaves 405 | -10/Subcaves | A swath of the cavern ceiling suddenly collapsed 482 | -10/Subcaves | Discovered new exit (range 14) 869 | -10/Subcaves | Shifting Twisted Machinery released Spk. Treads 899 | -10/Subcaves | Shifting Twisted Machinery released Battle Cannon 1007 | -10/Subcaves | A swath of the cavern ceiling suddenly collapsed 1232 | -10/Subcaves | Core integrity fell below 50% 1318 | -10/Subcaves | Discovered new exit (range 10) 1562 | -10/Subcaves | Core integrity fell below 20% 1571 | -10/Subcaves | Ambushed by angry Subdweller bent on revenge 1596 | -10/Subcaves | Destroyed by PS-FHB(R) with Subdweller Laser Last Messages --------------- 01281_ Found Piercing Trap. 01281_ Found 13 Matter. 01284_ Acquired Piercing Trap. 01286_ Acquired Sub. Monowheel. 01289_ Dropped Sub. Monowheel. 01291_ Acquired Mak. Hammer. 01318_ EXIT=FOUND 01527_ Lgt. Treads destroyed. 01558_ VC-ZLL(R) suffers critical hit (Blast). 01558_ VC-ZLL(R) destroyed. 01561_ PE-LRG(R) knocked back. 01564_ ZL-UOE(u) cries out in pain. 01564_ ZL-UOE(u) destroyed. 01565_ Sub. Machine Gun destroyed. 01569_ Acquired 41 matter. 01571_ PS-FHB(R) angrily emerges from the Twisted Machinery. 01571_ PS-FHB(R): "MADSUB!" 01571_ PE-LRG(R) knocked back. 01577_ PE-LRG(R) affixes Scrap Shield Fragment to Scrap Shield. 01577_ PE-LRG(R) destroyed. Map ----- +----------------------------------------------------+ | ?????????????????????????????????????????????????? | | ?????????????????????????????????????????????????? | | ?????????????????????????????????????????????????? | | ?????????????????????????????????????????????????? | | ?????????????????????????????????????????????????? | | ?????????????????????????????????????????????????? | | ?????????????????????????????????????????????????? | | ?????????????????????????????????????????????????? | | ???????????????????? ??????????????????????????? | | ?????????????????? ?????????????????????????? | | ???????????????? ?????????????????????????? | | ???????????????? #????????????????????????? | | ????????????????# ????????????????????????? | | ????????????????# #???????????????????????? | | ???????????????## ###???????##???????????? | | ???????????????# #####?? #???????????? | | ????????????????? ## #???????????? | | ??????????????????? ?????????????? | | ????????????????????# ???????????????? | | ?????????????????????# ?????????????????? | | ?????????????????####### #??????????????????? | | ???????????????### #?# #?####?????????????? | | ???????????????# #### ### ##????????????? | | ???????????##### #### % R ##???????????? | | ??????????## ## # # #; ""%#???????????? | | ??????????# ### % @& ""###???????????? | | ??????????# #?# = % "##?????????????? | | ?????????## # # ## "#??????????????? | | ?????????# ##### *% ###""#??????????????? | | ?????????# ### % ##?##"#??????????????? | | ?????????## ### % = ##????####????????????? | | ??????????## # #####??#### #????????????? | | ??????? #?# ####### ##???????????? | | ??????? ?## ### "" #???????????? | | ??????? ??## # ## #???????????? | | ??????? ???#### ## # ## ""# ##???????????? | | ??????? ?????## ##"" # ##????????????? | | ???????? ??????# ### ## ###"" ####?????????????? | | ???????? ????########## #?#"" #????????????????? | | ???????# ???## ## # ##? "##????????????????? | | ??????# ?### #?? ###?????????????????? | | ?# ??# ?# # #?#????????????????????? | | ??# ??# ?## ### ## ##???????????????????????? | | ## ### ### ##?#######????????????????????????? | | ####??????????????????????????????? | | ## ###????????????????????????????? | | ?# # #????????????????????????????? | | ?# ## #????????????????????????????? | | ?## ### #????????????????????????????? | | ??# ### #????????????????????????????? | +----------------------------------------------------+ Best States ------------- Heat Dissipation 25 Energy Generation 10 Energy Capacity 250 Matter Stores 300 Matter Capacity 300 Sight Range 16 Terrain Scan Density 10 Evasion (%) 40 Recoil Reduction 2 Item Schematics ----------------- None Robot Schematics ------------------ None Fabricated ------------ Nothing Alien Tech Used ----------------- None Achievements -------------- None Challenges ------------ None Game ------ Seed HelicalWardroneKit Manual? 0 Play Time 00:10:53 Cumulative 638.6 hours Start 2023.06.22 @ 18:27:24 End 2023.06.22 @ 18:40:21 Sessions 1 Manual Loads 0 Difficulty Rogue Special Mode None Game No. 559 Rogue 344 Adventurer 112 Explorer 103 Win Type - Total 42 Types 26/0/8/3/0/0/4/1/0 Lore% 85 Gallery% 91 Achievement% 82 Wizard Run 0 Options --------- ASCII 0 Keyboard 1 Movement Vi Keybinds 1 Fullscreen 1 Font 36/Terminus Map View 76x50 Tactical HUD 1 Map Filters NONE Filters NONE Steam 1 RUN: 732b7050-08be-48c8-abe1-e1a4c0223dd6